fUST/lending_fUST_20250702
["ID","MTS","AMOUNT","RATE_DAILY","PERIOD"]
[369010128,1751433078430,-2702.15,0.00020593,2]
[369010129,1751433078450,-958.68,0.00020593,2]
[369010130,1751433078464,-2328.48,0.00020593,2]
[369010131,1751433078487,-635.34,0.00020593,2]
[369010132,1751433078504,-473.13,0.00020593,2]
[369010133,1751433078519,-460.0,0.00020593,2]
[369010134,1751433078537,-1916.48,0.00020593,2]
[369010135,1751433078553,-2072.21,0.00020593,2]
[369010136,1751433078572,-2340.65,0.00020593,2]
[369010137,1751433078589,-520.17,0.00020593,2]
[369010138,1751433078606,-460.0,0.00020593,2]
[369010139,1751433078625,-601.75,0.00020593,2]
[369010140,1751433078641,-1381.3,0.00020593,2]
[369010141,1751433078659,-894.46,0.00020593,2]
[369010142,1751433078676,-684.17,0.00020593,2]
[369010143,1751433078692,-186.8,0.00020603,2]
[369010144,1751433078710,-483.72,0.00020603,2]
[369010145,1751433078727,-460.0,0.00020603,2]
[369010146,1751433078744,-196.57988656,0.00020603,2]
[369010147,1751433078763,-151.0,0.00020603,2]
[369010148,1751433078780,-151.0,0.00020603,2]
[369010149,1751433078796,-460.0,0.00020603,2]
[369010150,1751433078812,-676.67,0.00020603,2]
[369010151,1751433078829,-460.0,0.00020603,2]
[369010152,1751433078844,-460.0,0.00020603,2]
[369010153,1751433078860,-291.006551,0.00020603,2]
[369010154,1751433078876,-291.006551,0.00020603,2]
[369010155,1751433078892,-460.0,0.00020603,2]
[369010156,1751433078909,-548.66,0.00020603,2]
[369010157,1751433078924,-564.62,0.00020603,2]
[369010158,1751433078940,-506.04,0.00020603,2]
[369010159,1751433078957,-734.34,0.00020603,2]
[369010160,1751433078974,-439.04165567,0.00020603,2]
[369010161,1751433078990,-460.0,0.00020603,2]
[369010162,1751433079006,-545.30019583,0.00020603,2]
[369010163,1751433079022,-694.8,0.00020603,2]
[369010164,1751433079041,-481.54,0.00020603,2]
[369010165,1751433079057,-563.18,0.00020603,2]
[369010166,1751433079072,-3296.63,0.00020603,2]
[369010167,1751433079089,-507.77,0.00020603,2]
[369010168,1751433079105,-545.25,0.00020603,2]
[369010169,1751433079120,-777.38,0.00020603,2]
[369010170,1751433079137,-592.53,0.00020603,2]
[369010171,1751433079152,-699.33,0.00020603,2]
[369010172,1751433079168,-566.74,0.00020603,2]
[369010173,1751433079184,-614.28,0.00020603,2]
[369010174,1751433079201,-3109.36,0.00020603,2]
[369010175,1751433079218,-599.74,0.00020603,2]
[369010176,1751433079234,-460.0,0.00020603,2]
[369010177,1751433079251,-622.6,0.00020603,2]
[369010178,1751433079267,-460.0,0.00020603,2]
[369010179,1751433079423,-1255.98,0.00020603,2]
[369010180,1751433079437,-718.74,0.00020603,2]
[369010181,1751433079447,-866.31,0.00020603,2]
[369010182,1751433079457,-460.0,0.00020603,2]
[369010183,1751433079467,-988.53,0.00020603,2]
[369010184,1751433079476,-572.23,0.00020603,2]
[369010185,1751433079487,-177.11346123,0.00020603,2]
[369010186,1751433079497,-470.44,0.00020603,2]
[369010187,1751433079509,-594.745,0.00020642,2]
[369010188,1751433079521,-178.16484544,0.00020642,2]
[369010189,1751433079531,-707.88345509,0.00020659,3]
[369010190,1751433079542,-245.1,0.00020691,4]
[369010191,1751433079552,-490.15737682,0.00020699,2]
[369010192,1751433079562,-460.0,0.00020699,2]
[369010193,1751433079572,-460.0,0.00020699,2]
[369010194,1751433079581,-460.0,0.00020699,2]
[369010195,1751433079591,-460.0,0.00020699,2]
[369010196,1751433079600,-460.0,0.00020699,2]
[369010197,1751433079610,-460.0,0.00020699,2]
[369010198,1751433079620,-474.5,0.000207,2]
[369010199,1751433079632,-151.0,0.000207,4]
[369010200,1751433079642,-460.0,0.00020701,2]
[369010201,1751433079651,-460.0,0.00020701,2]
[369010202,1751433079661,-460.0,0.00020701,2]
[369010203,1751433079671,-510.2,0.00020701,2]
[369010204,1751433079681,-526.76,0.00020701,2]
[369010205,1751433079691,-558.46,0.00020802,2]
[369010206,1751433079702,-353.84,0.00020802,2]
[369010207,1751433079712,-460.0,0.00020802,2]
[369010208,1751433079722,-656.54,0.00020802,2]
[369010209,1751433079731,-547.63,0.00020802,2]
[369010210,1751433079741,-460.0,0.00020802,2]
[369010211,1751433079750,-574.05,0.00020802,2]
[369010212,1751433079760,-463.3,0.00020802,2]
[369010213,1751433079769,-641.83,0.00020802,2]
[369010214,1751433079779,-460.0,0.00020802,2]
[369010215,1751433079789,-497.88,0.00020802,2]
[369010216,1751433079798,-1511.8,0.00020802,2]
[369010217,1751433079807,-565.89,0.00020802,2]
[369010218,1751433079816,-594.16,0.00020802,2]
[369010219,1751433079826,-531.82,0.00020802,2]
[369010220,1751433079835,-1425.93,0.00020802,2]
[369010221,1751433079844,-1001.54,0.00020802,2]
[369010222,1751433079854,-3223.55,0.00020802,2]
[369010223,1751433079864,-582.24,0.00020802,2]
[369010224,1751433079874,-877.02,0.00020802,2]
[369010225,1751433079884,-1292.49,0.00020802,2]
[369010226,1751433079893,-460.0,0.00020802,2]
[369010227,1751433079903,-460.0,0.00020802,2]
[369010228,1751433079912,-460.0,0.00020802,2]
[369010229,1751433079922,-657.76,0.00020802,2]
[369010230,1751433079931,-460.0,0.00020802,2]
[369010231,1751433079941,-532.53,0.00020866,2]
[369010232,1751433079950,-460.0,0.00020866,2]
[369010233,1751433079960,-578.42,0.00020866,2]
[369010234,1751433079970,-1521.31,0.00020866,2]
[369010235,1751433079980,-460.0,0.00020866,2]
[369010236,1751433079989,-2702.15,0.00020867,2]
[369010237,1751433079999,-958.68,0.00020867,2]
[369010238,1751433080008,-2328.48,0.00020867,2]
[369010239,1751433080018,-635.34,0.00020867,2]
[369010240,1751433080027,-473.13,0.00020867,2]
[369010241,1751433080036,-460.0,0.00020867,2]
[369010242,1751433080046,-1916.48,0.00020867,2]
[369010243,1751433080055,-2072.21,0.00020867,2]
[369010244,1751433080065,-2340.65,0.00020867,2]
[369010245,1751433080075,-520.17,0.00020867,2]
[369010246,1751433080084,-460.0,0.00020867,2]
[369010247,1751433080094,-601.75,0.00020867,2]
[369010248,1751433080103,-1381.3,0.00020867,2]
[369010249,1751433080113,-894.46,0.00020867,2]
[369010250,1751433080123,-684.17,0.00020867,2]
[369010251,1751433080132,-483.72,0.00020877,2]
[369010252,1751433080142,-460.0,0.00020877,2]
[369010253,1751433080152,-460.0,0.00020877,2]
[369010254,1751433080162,-676.67,0.00020877,2]
[369010255,1751433080172,-460.0,0.00020877,2]
[369010256,1751433080182,-340.90466998,0.00020877,2]
[369010257,1751433080192,-460.0,0.00020877,2]
[369010258,1751433080201,-548.66,0.00020877,2]
[369010259,1751433080210,-564.62,0.00020877,2]
[369010260,1751433080220,-506.04,0.00020877,2]
[369010261,1751433080229,-734.34,0.00020877,2]
[369010262,1751433080239,-490.15734605,0.00020877,2]
[369010263,1751433080249,-694.8,0.00020877,2]
[369010264,1751433080258,-481.54,0.00020877,2]
[369010265,1751433080267,-563.18,0.00020877,2]
[369010266,1751433080277,-3296.63,0.00020877,2]
[369010267,1751433080286,-507.77,0.00020877,2]
[369010268,1751433080296,-545.25,0.00020877,2]
[369010269,1751433080306,-777.38,0.00020877,2]
[369010270,1751433080315,-592.53,0.00020877,2]
[369010271,1751433080324,-699.33,0.00020877,2]
[369010272,1751433080334,-566.74,0.00020877,2]
[369010273,1751433080344,-151.0,0.00020877,2]
[369010274,1751433080354,-614.28,0.00020877,2]
[369010275,1751433080363,-151.0,0.00020877,2]
[369010276,1751433080373,-494.896241,0.00020877,2]
[369010277,1751433080383,-3109.36,0.00020877,2]
[369010278,1751433080392,-599.74,0.00020877,2]
[369010279,1751433080401,-494.896241,0.00020877,2]
[369010280,1751433080411,-460.0,0.00020877,2]
[369010281,1751433080421,-622.6,0.00020877,2]
[369010282,1751433080430,-460.0,0.00020877,2]
[369010283,1751433080439,-1255.98,0.00020877,2]
[369010284,1751433080449,-718.74,0.00020877,2]
[369010285,1751433080459,-866.31,0.00020877,2]
[369010286,1751433080468,-460.0,0.00020877,2]
[369010287,1751433080478,-988.53,0.00020877,2]
[369010288,1751433080487,-572.23,0.00020877,2]
[369010289,1751433080497,-470.44,0.00020877,2]
[369010290,1751433080506,-707.88345509,0.00020934,4]
[369010291,1751433080516,-448.85,0.00020973,2]
[369010292,1751433080525,-159.29644466,0.00020973,2]
[369010293,1751433080535,-460.0,0.00020973,2]
[369010294,1751433080544,-460.0,0.00020973,2]
[369010295,1751433080554,-345.7321433,0.00020973,2]
[369010296,1751433080563,-460.0,0.00020973,2]
[369010297,1751433080573,-460.0,0.00020975,2]
[369010298,1751433080583,-460.0,0.00020975,2]
[369010299,1751433080592,-460.0,0.00020975,2]
[369010300,1751433080602,-510.2,0.00020975,2]
[369010301,1751433080612,-526.76,0.00020975,2]
[369010302,1751433080623,-151.0,0.00020976,2]
[369010303,1751433080633,-151.0,0.00020976,2]
[369010304,1751433080642,-205.452438,0.00020976,2]
[369010305,1751433080651,-205.452438,0.00020976,2]
[369010306,1751433080662,-1259.483418,0.00020976,2]
[369010307,1751433080672,-1259.483418,0.00020976,2]
[369010308,1751433080682,-310.540744,0.00020976,2]
[369010309,1751433080691,-310.540744,0.00020976,2]
[369010310,1751433080701,-151.0,0.00020976,2]
[369010311,1751433080711,-558.46,0.00021076,2]
[369010312,1751433080720,-460.0,0.00021076,2]
[369010313,1751433080730,-656.54,0.00021076,2]
[369010314,1751433080739,-547.63,0.00021076,2]
[369010315,1751433080837,-460.0,0.00021076,2]
[369010316,1751433080855,-574.05,0.00021076,2]
[369010317,1751433080864,-463.3,0.00021076,2]
[369010318,1751433080878,-641.83,0.00021076,2]
[369010319,1751433080888,-460.0,0.00021076,2]
[369010320,1751433080897,-497.88,0.00021076,2]
[369010321,1751433080907,-1511.8,0.00021076,2]
[369010322,1751433080916,-565.89,0.00021076,2]
[369010323,1751433080926,-594.16,0.00021076,2]
[369010324,1751433080936,-531.82,0.00021076,2]
[369010325,1751433080945,-1425.93,0.00021076,2]
[369010326,1751433080955,-1001.54,0.00021076,2]
[369010327,1751433080964,-3223.55,0.00021076,2]
[369010328,1751433080974,-582.24,0.00021076,2]
[369010329,1751433080983,-877.02,0.00021076,2]
[369010330,1751433080992,-1292.49,0.00021076,2]
[369010331,1751433081002,-460.0,0.00021076,2]
[369010332,1751433081011,-266.02449672,0.00021076,2]
[369010333,1751433081022,-657.76,0.00021076,2]
[369010334,1751433081032,-151.0,0.00021076,2]
[369010335,1751433081041,-244.94793977,0.00021076,2]
[369010336,1751433081051,-151.0,0.00021076,2]
[369010337,1751433081060,-532.53,0.0002114,2]
[369010338,1751433081070,-578.42,0.0002114,2]
[369010339,1751433081080,-1521.31,0.0002114,2]
[369010340,1751433081089,-460.0,0.0002114,2]
[369010341,1751433081098,-2702.15,0.00021141,2]
[369010342,1751433081108,-958.68,0.00021141,2]
[369010343,1751433081118,-2328.48,0.00021141,2]
[369010344,1751433081128,-635.34,0.00021141,2]
[369010345,1751433081138,-473.13,0.00021141,2]
[369010346,1751433081147,-460.0,0.00021141,2]
[369010347,1751433081156,-1916.48,0.00021141,2]
[369010348,1751433081166,-2072.21,0.00021141,2]
[369010349,1751433081176,-2340.65,0.00021141,2]
[369010350,1751433081186,-520.17,0.00021141,2]
[369010351,1751433081196,-460.0,0.00021141,2]
[369010352,1751433081205,-601.75,0.00021141,2]
[369010353,1751433081215,-1381.3,0.00021141,2]
[369010354,1751433081224,-894.46,0.00021141,2]
[369010355,1751433081234,-684.17,0.00021141,2]
[369010356,1751433081244,-245.1,0.00021144,4]
[369010357,1751433081253,-483.72,0.00021151,2]
[369010358,1751433081264,-460.0,0.00021151,2]
[369010359,1751433081277,-460.0,0.00021151,2]
[369010360,1751433081287,-676.67,0.00021151,2]
[369010361,1751433081296,-460.0,0.00021151,2]
[369010362,1751433081307,-460.0,0.00021151,2]
[369010363,1751433081316,-548.66,0.00021151,2]
[369010364,1751433081326,-564.62,0.00021151,2]
[369010365,1751433081336,-506.04,0.00021151,2]
[369010366,1751433081348,-734.34,0.00021151,2]
[369010367,1751433081358,-694.8,0.00021151,2]
[369010368,1751433081369,-481.54,0.00021151,2]
[369010369,1751433081379,-563.18,0.00021151,2]
[369010370,1751433081388,-3296.63,0.00021151,2]
[369010371,1751433081398,-507.77,0.00021151,2]
[369010372,1751433081407,-545.25,0.00021151,2]
[369010373,1751433081417,-777.38,0.00021151,2]
[369010374,1751433081426,-592.53,0.00021151,2]
[369010375,1751433081436,-699.33,0.00021151,2]
[369010376,1751433081446,-566.74,0.00021151,2]
[369010377,1751433081456,-614.28,0.00021151,2]
[369010378,1751433081466,-3109.36,0.00021151,2]
[369010379,1751433081475,-599.74,0.00021151,2]
[369010380,1751433081485,-460.0,0.00021151,2]
[369010381,1751433081495,-622.6,0.00021151,2]
[369010382,1751433081505,-460.0,0.00021151,2]
[369010383,1751433081514,-1255.98,0.00021151,2]
[369010384,1751433081524,-718.74,0.00021151,2]
[369010385,1751433081534,-866.31,0.00021151,2]
[369010386,1751433081543,-460.0,0.00021151,2]
[369010387,1751433081553,-988.53,0.00021151,2]
[369010388,1751433081562,-572.23,0.00021151,2]
[369010389,1751433081572,-470.44,0.00021151,2]
[369010390,1751433081581,-707.88345509,0.0002121,4]
[369010391,1751433081591,-460.0,0.00021247,2]
[369010392,1751433081601,-460.0,0.00021247,2]
[369010393,1751433081610,-460.0,0.00021247,2]
[369010394,1751433081619,-460.0,0.00021249,2]
[369010395,1751433081632,-460.0,0.00021249,2]
[369010396,1751433081642,-460.0,0.00021249,2]
[369010397,1751433081651,-510.2,0.00021249,2]
[369010398,1751433081661,-526.76,0.00021249,2]
[369010399,1751433081671,-550.58455267,0.00021305,2]
[369010400,1751433081680,-151.0,0.0002135,2]
[369010401,1751433081689,-151.0,0.0002135,2]
[369010402,1751433081699,-151.0,0.0002135,2]
[369010403,1751433081709,-151.0,0.0002135,2]
[369010404,1751433081718,-558.46,0.0002135,2]
[369010405,1751433081728,-151.0,0.0002135,2]
[369010406,1751433081737,-151.0,0.0002135,2]
[369010407,1751433081746,-151.0,0.0002135,2]
[369010408,1751433081755,-151.0,0.0002135,2]
[369010409,1751433081765,-634.699384,0.0002135,2]
[369010410,1751433081774,-634.699384,0.0002135,2]
[369010411,1751433081784,-228.405202,0.0002135,2]
[369010412,1751433081793,-228.405202,0.0002135,2]
[369010413,1751433081802,-152.353769,0.0002135,2]
[369010414,1751433081812,-152.353769,0.0002135,2]
[369010415,1751433081822,-460.0,0.0002135,2]
[369010416,1751433081831,-151.0,0.0002135,2]
[369010417,1751433081841,-656.54,0.0002135,2]
[369010418,1751433081850,-547.63,0.0002135,2]
[369010419,1751433081859,-460.0,0.0002135,2]
[369010420,1751433081869,-574.05,0.0002135,2]
[369010421,1751433081878,-463.3,0.0002135,2]
[369010422,1751433081887,-341.117334,0.0002135,2]
[369010423,1751433081896,-341.117334,0.0002135,2]
[369010424,1751433081906,-641.83,0.0002135,2]
[369010425,1751433081916,-159.27475,0.0002135,2]
[369010426,1751433081926,-460.0,0.0002135,2]
[369010427,1751433081935,-497.88,0.0002135,2]
[369010428,1751433081944,-1511.8,0.0002135,2]
[369010429,1751433081954,-565.89,0.0002135,2]
[369010430,1751433081963,-594.16,0.0002135,2]
[369010431,1751433081973,-531.82,0.0002135,2]
[369010432,1751433081982,-1425.93,0.0002135,2]
[369010433,1751433081991,-1001.54,0.0002135,2]
[369010434,1751433082000,-151.0,0.0002135,2]
[369010435,1751433082012,-3223.55,0.0002135,2]
[369010436,1751433082022,-582.24,0.0002135,2]
[369010437,1751433082032,-877.02,0.0002135,2]
[369010438,1751433082041,-1292.49,0.0002135,2]
[369010439,1751433082050,-460.0,0.0002135,2]
[369010440,1751433082060,-657.76,0.0002135,2]
[369010441,1751433082069,-500.0,0.00021388,2]
[369010442,1751433082079,-532.53,0.00021414,2]
[369010443,1751433082089,-578.42,0.00021414,2]
[369010444,1751433082100,-1521.31,0.00021414,2]
[369010445,1751433082110,-460.0,0.00021414,2]
[369010446,1751433082119,-2702.15,0.00021415,2]
[369010447,1751433082129,-958.68,0.00021415,2]
[369010448,1751433082139,-2328.48,0.00021415,2]
[369010449,1751433082148,-635.34,0.00021415,2]
[369010450,1751433082159,-473.13,0.00021415,2]
[369010451,1751433082169,-460.0,0.00021415,2]
[369010452,1751433082179,-1916.48,0.00021415,2]
[369010453,1751433082188,-2072.21,0.00021415,2]
[369010454,1751433082198,-2340.65,0.00021415,2]
[369010455,1751433082207,-520.17,0.00021415,2]
[369010456,1751433082216,-460.0,0.00021415,2]
[369010457,1751433082225,-601.75,0.00021415,2]
[369010458,1751433082235,-1381.3,0.00021415,2]
[369010459,1751433082244,-894.46,0.00021415,2]
[369010460,1751433082254,-684.17,0.00021415,2]
[369010461,1751433082263,-483.72,0.00021425,2]
[369010462,1751433082273,-460.0,0.00021425,2]
[369010463,1751433082282,-460.0,0.00021425,2]
[369010464,1751433082292,-209.194205,0.00021425,2]
[369010465,1751433082301,-676.67,0.00021425,2]
[369010466,1751433082310,-209.194205,0.00021425,2]
[369010467,1751433082320,-460.0,0.00021425,2]
[369010468,1751433082329,-172.509072,0.00021425,2]
[369010469,1751433082339,-172.509072,0.00021425,2]
[369010470,1751433082348,-460.0,0.00021425,2]
[369010471,1751433082357,-548.66,0.00021425,2]
[369010472,1751433082367,-564.62,0.00021425,2]
[369010473,1751433082376,-506.04,0.00021425,2]
[369010474,1751433082385,-734.34,0.00021425,2]
[369010475,1751433082395,-694.8,0.00021425,2]
[369010476,1751433082405,-481.54,0.00021425,2]
[369010477,1751433082414,-563.18,0.00021425,2]
[369010478,1751433082423,-3296.63,0.00021425,2]
[369010479,1751433082434,-507.77,0.00021425,2]
[369010480,1751433082443,-545.25,0.00021425,2]
[369010481,1751433082452,-777.38,0.00021425,2]
[369010482,1751433082461,-592.53,0.00021425,2]
[369010483,1751433082471,-699.33,0.00021425,2]
[369010484,1751433082481,-566.74,0.00021425,2]
[369010485,1751433082490,-614.28,0.00021425,2]
[369010486,1751433082500,-3109.36,0.00021425,2]
[369010487,1751433082509,-599.74,0.00021425,2]
[369010488,1751433082520,-460.0,0.00021425,2]
[369010489,1751433082529,-622.6,0.00021425,2]
[369010490,1751433082539,-460.0,0.00021425,2]
[369010491,1751433082548,-1255.98,0.00021425,2]
[369010492,1751433082557,-718.74,0.00021425,2]
[369010493,1751433082567,-866.31,0.00021425,2]
[369010494,1751433082575,-460.0,0.00021425,2]
[369010495,1751433082585,-988.53,0.00021425,2]
[369010496,1751433082595,-572.23,0.00021425,2]
[369010497,1751433082606,-470.44,0.00021425,2]
[369010498,1751433082616,-707.88345509,0.00021486,5]
[369010499,1751433082629,-151.0,0.000215,4]
[369010500,1751433082639,-460.0,0.00021521,2]
[369010501,1751433082649,-460.0,0.00021521,2]
[369010502,1751433082659,-460.0,0.00021521,2]
[369010503,1751433082669,-294.0,0.00021522,2]
[369010504,1751433082679,-460.0,0.00021523,2]
[369010505,1751433082689,-460.0,0.00021523,2]
[369010506,1751433082698,-510.2,0.00021523,2]
[369010507,1751433082708,-526.76,0.00021523,2]
[369010508,1751433082718,-152.946531,0.00021523,2]
[369010509,1751433082727,-152.946531,0.00021523,2]
[369010510,1751433082736,-151.0,0.00021523,2]
[369010511,1751433082746,-5000.0,0.00021555,2]
[369010512,1751433082755,-207.4,0.00021555,2]
[369010513,1751433082764,-1500.0,0.00021555,2]
[369010514,1751433082774,-1500.0,0.00021555,2]
[369010515,1751433082784,-1500.0,0.00021555,2]
[369010516,1751433082794,-1500.0,0.00021555,2]
[369010517,1751433082804,-1500.0,0.00021555,2]
[369010518,1751433082813,-1500.0,0.00021555,2]
[369010519,1751433082822,-1500.0,0.00021555,2]
[369010520,1751433082831,-1500.0,0.00021555,2]
[369010521,1751433082841,-1500.0,0.00021555,2]
[369010522,1751433082851,-1500.0,0.00021555,2]
[369010523,1751433082860,-1406.24796827,0.00021555,2]
[369010524,1751433082870,-245.1,0.00021597,5]
[369010525,1751433082880,-558.46,0.00021624,2]
[369010526,1751433082889,-460.0,0.00021624,2]
[369010527,1751433082899,-656.54,0.00021624,2]
[369010528,1751433082908,-547.63,0.00021624,2]
[369010529,1751433082918,-460.0,0.00021624,2]
[369010530,1751433082928,-574.05,0.00021624,2]
[369010531,1751433082938,-463.3,0.00021624,2]
[369010532,1751433082947,-641.83,0.00021624,2]
[369010533,1751433082957,-460.0,0.00021624,2]
[369010534,1751433082966,-497.88,0.00021624,2]
[369010535,1751433082984,-1511.8,0.00021624,2]
[369010536,1751433082994,-565.89,0.00021624,2]
[369010537,1751433083005,-594.16,0.00021624,2]
[369010538,1751433083015,-531.82,0.00021624,2]
[369010539,1751433083025,-1425.93,0.00021624,2]
[369010540,1751433083035,-1001.54,0.00021624,2]
[369010541,1751433083044,-3223.55,0.00021624,2]
[369010542,1751433083174,-582.24,0.00021624,2]
[369010543,1751433083185,-877.02,0.00021624,2]
[369010544,1751433083197,-1292.49,0.00021624,2]
[369010545,1751433083207,-460.0,0.00021624,2]
[369010546,1751433083218,-657.76,0.00021624,2]
[369010547,1751433083228,-2346.36563976,0.00021644,2]
[369010548,1751433083237,-532.53,0.00021688,2]
[369010549,1751433083248,-578.42,0.00021688,2]
[369010550,1751433083259,-1521.31,0.00021688,2]
[369010551,1751433083268,-460.0,0.00021688,2]
[369010552,1751433083278,-2702.15,0.00021689,2]
[369010553,1751433083289,-958.68,0.00021689,2]
[369010554,1751433083299,-2328.48,0.00021689,2]
[369010555,1751433083309,-635.34,0.00021689,2]
[369010556,1751433083319,-473.13,0.00021689,2]
[369010557,1751433083329,-460.0,0.00021689,2]
[369010558,1751433083339,-1916.48,0.00021689,2]
[369010559,1751433083349,-2072.21,0.00021689,2]
[369010560,1751433083358,-2340.65,0.00021689,2]
[369010561,1751433083368,-520.17,0.00021689,2]
[369010562,1751433083378,-452.95540404,0.00021689,2]
[369010563,1751433083388,-601.75,0.00021689,2]
[369010564,1751433083397,-1381.3,0.00021689,2]
[369010565,1751433083406,-894.46,0.00021689,2]
[369010566,1751433083416,-684.17,0.00021689,2]
[369010567,1751433083425,-483.72,0.00021699,2]
[369010568,1751433083435,-460.0,0.00021699,2]
[369010569,1751433083445,-284.50404704,0.00021699,2]
[369010570,1751433083454,-676.67,0.00021699,2]
[369010571,1751433083463,-460.0,0.00021699,2]
[369010572,1751433083473,-237.45,0.00021699,2]
[369010573,1751433083482,-548.66,0.00021699,2]
[369010574,1751433083492,-564.62,0.00021699,2]
[369010575,1751433083501,-506.04,0.00021699,2]
[369010576,1751433083510,-734.34,0.00021699,2]
[369010577,1751433083520,-694.8,0.00021699,2]
[369010578,1751433083529,-481.54,0.00021699,2]
[369010579,1751433083539,-563.18,0.00021699,2]
[369010580,1751433083549,-3296.63,0.00021699,2]
[369010581,1751433083558,-507.77,0.00021699,2]
[369010582,1751433083568,-545.25,0.00021699,2]
[369010583,1751433083577,-777.38,0.00021699,2]
[369010584,1751433083586,-592.53,0.00021699,2]
[369010585,1751433083596,-699.33,0.00021699,2]
[369010586,1751433083605,-566.74,0.00021699,2]
[369010587,1751433083616,-614.28,0.00021699,2]
[369010588,1751433083629,-3109.36,0.00021699,2]
[369010589,1751433083639,-599.74,0.00021699,2]
[369010590,1751433083648,-460.0,0.00021699,2]
[369010591,1751433083658,-622.6,0.00021699,2]
[369010592,1751433083668,-368.63301343,0.00021699,2]
[369010593,1751433083678,-1255.98,0.00021699,2]
[369010594,1751433083688,-718.74,0.00021699,2]
[369010595,1751433083698,-866.31,0.00021699,2]
[369010596,1751433083707,-582.40630043,0.00021699,2]
[369010597,1751433083717,-988.53,0.00021699,2]
[369010598,1751433083727,-572.23,0.00021699,2]
[369010599,1751433083737,-470.44,0.00021699,2]
[369010600,1751433083747,-707.88345509,0.00021762,5]
[369010601,1751433083757,-460.0,0.00021795,2]
[369010602,1751433083766,-460.0,0.00021795,2]
[369010603,1751433083776,-460.0,0.00021795,2]
[369010604,1751433083786,-460.0,0.00021796,2]
[369010605,1751433083795,-460.0,0.00021796,2]
[369010606,1751433083805,-510.2,0.00021796,2]
[369010607,1751433083814,-526.76,0.00021796,2]
[369010608,1751433083824,-558.46,0.00021898,2]
[369010609,1751433083834,-460.0,0.00021898,2]
[369010610,1751433083843,-678.03142,0.00021898,2]
[369010611,1751433083853,-678.03142,0.00021898,2]
[369010612,1751433083863,-656.54,0.00021898,2]
[369010613,1751433083873,-547.63,0.00021898,2]
[369010614,1751433083882,-574.05,0.00021898,2]
[369010615,1751433083891,-463.3,0.00021898,2]
[369010616,1751433083901,-641.83,0.00021898,2]
[369010617,1751433083911,-460.0,0.00021898,2]
[369010618,1751433083922,-497.88,0.00021898,2]
[369010619,1751433083932,-1511.8,0.00021898,2]
[369010620,1751433083943,-565.89,0.00021898,2]
[369010621,1751433083954,-594.16,0.00021898,2]
[369010622,1751433083965,-531.82,0.00021898,2]
[369010623,1751433083974,-1425.93,0.00021898,2]
[369010624,1751433083983,-1001.54,0.00021898,2]
[369010625,1751433083993,-3223.55,0.00021898,2]
[369010626,1751433084002,-877.02,0.00021898,2]
[369010627,1751433084014,-582.24,0.00021898,2]